[Event "85th Tata Steel Masters 2023"]
[Site "Wijk aan Zee"]
[Date "2023.01.21"]
[Round "7.3"]
[White "Maghsoodloo, Parham"]
[Black "Caruana, Fabiano"]
[Result "1/2-1/2"]
[ECO "D38"]
[WhiteElo "2719"]
[BlackElo "2766"]
[Annotator "TA"]
[PlyCount "212"]
[EventDate "2023.01.10"]
[EventType "tourn"]
[EventCountry "NED"]
[SourceTitle "playchess.com"]
[Source "ChessBase"]
[SourceQuality "1"]
[TimeControl "40/6000+30:30/3000+30:900+30"]

{[%evp 39,211,0,0,0,0,0,0,0,6,4,8,0,0,-13,0,-16,-8,-3,-13,-11,-4,-9,-2,-15,-13,-33,-34,-33,-27,-34,-34,-25,-33,-57,-8,0,0,0,16,23,23,0,16,14,23,29,86,91,106,0,0,0,0,0,0,0,0,0,0,0,0,0,0,0,0,0,0,0,0,0,0,0,0,0,0,0,0,0,0,0,0,0,0,0,0,-239,-239,-239,-239,-239,-133,-133,-133,-158,-158,-239,-239,-239,-239,-239,-239,-239,-159,-239,-239,-239,-239,-239,-232,-359,-359,-447,-460,-460,-455,-435,-408,-447,-400,-560,-366,-598,-319,-326,-326,-826,-778,-850,-449,-420,-312,-312,-312,-312,-326,-326,-312,-312,-312,-312,-59,-66,-71,-71,-78,-78,-71,-87,0,0,0,0,0,0,0,0,0,0,0,0,0,0,0,0,0,0,0,0,0,0,0,0,0,0]} 1. d4 {[%emt 0:00:03]} Nf6 {[%emt 0:00:05]} 2. c4 {[%emt 0:00:05]} e6 {[%emt 0:00:03]} 3. Nf3 {[%emt 0:00:05]} d5 {[%emt 0:00:05]} 4. Nc3 {[%emt 0:00:04]} Bb4 {[%emt 0:00:04]} 5. Bg5 {[%emt 0:00:17]} h6 {[%emt 0:00:07]} 6. Bxf6 {[%emt 0:00:06]} Qxf6 {[%emt 0:00:05]} 7. Qa4+ {[%emt 0:00:08]} Nc6 {[%emt 0:00:06]} 8. e3 {[%emt 0:00:49]} O-O {[%emt 0:00:07]} 9. Be2 {[%emt 0:00:14]} Qe7 {[%emt 0:00:42]} 10. cxd5 {[%emt 0:07:23]} exd5 {[%emt 0:00:06]} 11. O-O {[%emt 0:00:05]} Be6 {[%emt 0:05:41]} 12. Rac1 {[%emt 0:01:55]} Rfd8 {[%emt 0:13:57]} 13. a3 {[%emt 0:10:27]} Bd6 {[%emt 0:01:01]} 14. Nb5 {[%emt 0:00:41]} a6 {[%emt 0:05:05]} 15. Nxd6 {[%emt 0:00:46]} Qxd6 {[%emt 0:00:14]} 16. Qb3 {[%emt 0:08:47]} Rdb8 {[%emt 0:08:59]} 17. Ne1 {[%emt 0:05:55]} Ne7 {[%emt 0:11:33]} 18. Nd3 {[%emt 0:00:51]} c6 {[%emt 0:00:13]} 19. Nc5 {[%emt 0:01:05]} Bf5 {[%emt 0:00:38]} 20. f3 {[%emt 0:06:42]} (20. Nxb7 $2 Qc7 $19) 20... a5 {[%emt 0:08:04]} 21. Qc3 {[%emt 0:03:29]} (21. Nxb7 $2 Qd7 22. Bd1 Rxb7 $19) 21... b6 {[%emt 0:03:04]} 22. Na4 {[%emt 0:00:23]} Ra7 {[%emt 0:04:30]} 23. Rfe1 {[%emt 0:02:43]} Rc7 {[%emt 0:03:16]} 24. Bf1 {[%emt 0:06:16]} Qd7 {[%emt 0:10:05]} 25. e4 {[%emt 0:01:41]} Be6 {[%emt 0:00:06]} 26. b3 {[%emt 0:02:22]} Ng6 {[%emt 0:04:41]} 27. Rcd1 {[%emt 0:04:52]} Qe7 {[%emt 0:02:06]} 28. Qb2 {[%emt 0:02:12]} dxe4 {[%emt 0:04:15]} 29. fxe4 {[%emt 0:00:10]} Rd7 {[%emt 0:00:13]} 30. b4 {[%emt 0:02:57]} axb4 {[%emt 0:01:05]} 31. axb4 {[%emt 0:00:05]} Qd8 {[%emt 0:09:55]} 32. Qc3 {[%emt 0:07:14]} (32. b5 $5 {[%cal Rb5c6]} c5 33. d5 $11) 32... Ra8 {[%emt 0:01:37]} 33. Nb2 $1 {[%emt 0:00:38]} (33. Qxc6 Rc7 34. Qxb6 (34. Qb5 $2 Bd7 $19 {[%mdl 64] Skewer}) 34... Rxa4 $17) 33... b5 {[%emt 0:00:54]} 34. Qxc6 {[%emt 0:17:09]} Rxd4 {[%emt 0:03:56]} 35. Qxb5 {[%emt 0:00:04]} Rc8 {[%emt 0:04:17]} 36. Qa5 {[%emt 0:02:05]} Rxd1 {[%emt 0:03:54]} (36... Qd6 $15 37. Qa7 Rxd1 38. Rxd1 Qxb4) 37. Rxd1 $11 {[%emt 0:00:02]} Qf6 {[%emt 0:00:07]} 38. Nd3 {[%emt 0:02:22]} Rc2 {[%emt 0:00:12]} 39. Qb6 {[%emt 0:02:11]} Kh7 {[%emt 0:01:23]} 40. b5 {[%emt 0:03:05]} Qc3 {[%emt 0:03:09]} 41. Ne1 {[%emt 0:52:07]} Rb2 {[%emt 0:03:05]} 42. Qd4 {[%emt 0:00:00]} Qb3 {[%emt 0:06:54]} (42... Qxd4+ $11 43. Rxd4 Ne5) 43. e5 $1 $16 {[%emt 0:00:00]} Nxe5 {[%emt 0:15:29]} 44. Qxe5 {[%emt 0:00:00]} (44. Ra1 $1 $16 Ng6 45. Bd3) 44... Qxd1 $11 {[%emt 0:00:06]} 45. Qxb2 {[%emt 0:00:00]} Qxe1 {[%emt 0:00:06]} 46. b6 {[%emt 0:00:00]} Bd5 {[%emt 0:03:31]} 47. h3 {[%emt 0:00:00]} f5 {[%emt 0:08:20]} 48. Qf2 {[%emt 0:00:00]} (48. b7 $5 Qe3+ $8 49. Kh1 Qxh3+ 50. Kg1 Qe3+ 51. Kh1 Qh3+ 52. Kg1 Qe3+ 53. Kh1 Qh3+ $11) 48... Qb1 {[%emt 0:00:28]} 49. Kh2 {[%emt 0:00:00]} Be4 {[%emt 0:00:30]} 50. Bc4 {[%emt 0:00:00]} Qd1 {[%emt 0:01:46]} 51. Bf1 {[%emt 0:00:00]} Qb1 {[%emt 0:00:32]} 52. h4 {[%emt 0:00:00]} Qb4 {[%emt 0:02:28]} 53. h5 {[%emt 0:00:00]} Qd6+ {[%emt 0:01:22]} 54. Kh3 {[%emt 0:01:00]} f4 {[%emt 0:04:58]} 55. Kg4 {[%emt 0:07:47]} Bb1 {[%emt 0:03:45]} 56. Qb2 {[%emt 0:05:32]} Qe6+ {[%emt 0:03:44]} 57. Kxf4 {[%emt 0:01:07]} Qf5+ {[%emt 0:00:06]} 58. Ke3 {[%emt 0:02:29]} Qxf1 {[%emt 0:00:13]} 59. b7 {[%emt 0:00:05]} Qe1+ {[%emt 0:02:06]} 60. Kd4 {[%emt 0:01:18]} Qe4+ {[%emt 0:00:39]} 61. Kc5 {[%emt 0:00:14]} Qe7+ {[%emt 0:00:00]} 62. Kb6 $2 {[%emt 0:00:00]} (62. Kc4 $1 $11 {and White is okay.} Qc7+ 63. Kd5 Qd8+ 64. Kc5 Qe7+ 65. Kc4 (65. Kb6 Qe3+ 66. Kc7 Qc5+ 67. Kd8 Qd6+ 68. Ke8 Qb8+ 69. Kf7 Ba2+ 70. Qxa2 Qg8+ 71. Ke7 Qxa2 $17) 65... Qh4+ 66. Kc5 (66. Kb5 $2 Bd3+ 67. Kc6 Be4+ 68. Kb6 Qd8+ 69. Ka6 Bd3+ 70. Ka7 Qa5+ 71. Kb8 Qxh5 $19) 66... Qg5+ 67. Kd6 Qd8+ 68. Kc5 Qg5+ 69. Kd6 Qd8+ 70. Kc5) 62... Qe3+ $1 $19 {[%emt 0:00:00]} 63. Kc7 {[%emt 0:00:00]} Qc5+ $1 {[%emt 0:00:00]} 64. Kd8 {[%emt 0:00:00]} Qd6+ $1 {[%emt 0:00:00]} 65. Ke8 {[%emt 0:00:00]} Qb8+ {[%emt 0:00:00]} 66. Kf7 {[%emt 0:00:00] [#]} Ba2+ $1 {[%emt 0:00:00]} 67. Qxa2 {[%emt 0:00:00] [#]} Qg8+ $1 {[%emt 0:00:00]} ({Weaker is} 67... Qxb7+ 68. Ke6 $17) 68. Ke7 {[%emt 0:00:00]} Qxa2 {[%emt 0:00:00]} 69. b8=Q {[%emt 0:00:00]} Qe2+ {[%emt 0:00:00]} ({Inferior is} 69... Qxg2 70. Qb1+ Kh8 71. Qb8+ Kh7 72. Qb1+ g6 73. Qd3 $11) 70. Kf8 {[%emt 0:00:00]} Qxh5 {[%emt 0:00:00]} ({Worse is} 70... Qxg2 71. Qb1+ Kh8 72. Qb8 $11) 71. Qb1+ {[%emt 0:09:10]} (71. Qc8 $17 {is a better defense.}) 71... Qg6 $19 {[%emt 0:12:50]} 72. Qf1 {[%emt 0:00:06]} h5 {[%emt 0:00:43]} 73. Qf2 {[%emt 0:03:37]} Qe4 {[%emt 0:00:53]} 74. Kf7 {[%emt 0:06:35]} (74. g3 {was forced.}) 74... h4 $19 {[%emt 0:00:43]} 75. Qd2 {[%emt 0:01:18]} Qf5+ {[%emt 0:00:46]} 76. Ke8 {[%emt 0:00:10]} Kg6 {[%emt 0:02:32]} 77. Qd6+ {[%emt 0:00:04]} Kh5 {[%emt 0:01:19]} 78. Qd1+ {[%emt 0:01:11]} Kh6 {[%emt 0:00:14]} 79. Qd2+ {[%emt 0:01:09]} g5 {[%emt 0:00:06]} 80. Qd4 $2 {[%emt 0:01:16]} (80. Qe3) 80... Kh5 {[%emt 0:01:37]} 81. Ke7 {[%emt 0:00:35]} g4 {[%emt 0:01:44]} 82. Kd6 $2 {[%emt 0:00:41]} (82. Qc3) 82... Kg5 $19 {[%emt 0:00:12]} 83. Qg1 {[%emt 0:00:29]} Qd3+ {[%emt 0:00:41]} 84. Ke5 {[%emt 0:00:21]} Qe2+ {[%emt 0:00:15]} 85. Kd4 {[%emt 0:00:16]} Qd2+ {[%emt 0:02:36]} 86. Ke4 {[%emt 0:00:01]} Qf4+ {[%emt 0:00:46]} 87. Kd3 {[%emt 0:00:01]} Qf5+ {[%emt 0:00:18]} 88. Kd2 {[%emt 0:01:02]} Qd5+ {[%emt 0:00:07]} 89. Ke2 {[%emt 0:00:21]} Qa2+ $2 {[%emt 0:00:46]} (89... Qc4+ $19 90. Kd2 Qf4+ 91. Ke2 Qc4+ 92. Kd2 h3 93. gxh3 Qf4+ 94. Ke2 g3) 90. Kd3 $15 {[%emt 0:00:05]} Qb3+ {[%emt 0:00:05]} 91. Kd2 {[%emt 0:00:11]} Qb2+ {[%emt 0:00:56]} 92. Kd3 {[%emt 0:00:03]} Qa3+ {[%emt 0:00:15]} 93. Ke2 {[%emt 0:00:30]} h3 {[%emt 0:00:47]} ({Better is} 93... Qa6+ $17 94. Kd2 Qd6+ 95. Ke2 Qe5+ 96. Kd3 Qf4) 94. gxh3 $11 {[%emt 0:00:09]} Qxh3 {[%emt 0:00:46]} 95. Qf2 {[%emt 0:02:11]} Qh7 {[%emt 0:00:35]} 96. Qg3 {[%emt 0:00:38]} Qf5 {[%emt 0:00:31]} 97. Ke1 {[%emt 0:00:04]} Qf6 {[%emt 0:00:32]} 98. Ke2 {[%emt 0:00:06]} Kh5 {[%emt 0:00:12]} 99. Ke1 {[%emt 0:00:13]} Kg5 {[%emt 0:00:35]} 100. Ke2 {[%emt 0:00:04]} Qf4 {[%emt 0:00:25]} 101. Qxf4+ {[%emt 0:00:05]} Kxf4 {[%emt 0:00:02]} 102. Kf2 {[%emt 0:00:04]} g3+ {[%emt 0:00:03]} 103. Kg2 {[%emt 0:00:02]} Kg4 {[%emt 0:00:02]} 104. Kg1 {[%emt 0:00:04]} Kh3 {[%emt 0:00:04]} 105. Kh1 {[%emt 0:00:03]} g2+ {[%emt 0:00:03]} 106. Kg1 {[%emt 0:00:02]} Kg3 {[%emt 0:00:03]} 1/2-1/2

[Event "85th Tata Steel Masters 2023"]
[Site "Wijk aan Zee"]
[Date "2023.01.24"]
[Round "9.1"]
[White "Keymer, Vincent"]
[Black "Abdusattorov, Nodirbek"]
[Result "1/2-1/2"]
[ECO "D34"]
[WhiteElo "2696"]
[BlackElo "2713"]
[Annotator "TA"]
[PlyCount "177"]
[EventDate "2023.01.10"]
[EventType "tourn"]
[EventCountry "NED"]
[SourceTitle "playchess.com"]
[Source "ChessBase"]
[SourceQuality "1"]
[TimeControl "40/6000+30:30/3000+30:900+30"]

{[%evp 13,177,40,29,0,14,0,0,-6,12,0,0,0,0,0,0,0,0,0,24,20,24,11,10,0,21,27,43,28,47,20,23,31,29,36,35,17,22,11,15,15,21,18,41,41,85,89,95,91,93,79,95,95,95,95,114,95,95,95,95,95,95,95,95,0,187,95,112,106,118,103,128,122,130,122,105,117,101,106,162,156,210,112,144,135,132,90,90,87,87,8,8,8,8,8,8,8,8,8,8,8,152,88,88,88,88,88,91,91,91,95,95,95,10768,10768,7861,5430,3337,2263,384,9804,10239,8,10768,10768,10768,91,10389,10385,10358,10347,10239,9825,10340,8,8,0,9508,9408,8221,7687,7687,7390,7350,6717,5800,4891,4891,0,0,0,0,0,0,0,0,0,0,0,0,0,0,0,0,0,0,0]} 1. c4 {[%emt 0:00:03]} c5 {[%emt 0:00:25]} 2. Nf3 {[%emt 0:00:05]} Nf6 {[%emt 0:00:09]} 3. Nc3 {[%emt 0:00:16]} Nc6 {[%emt 0:00:32]} 4. g3 {[%emt 0:00:04]} e6 {[%emt 0:00:19]} 5. Bg2 {[%emt 0:01:18]} d5 {[%emt 0:00:09]} 6. cxd5 {[%emt 0:00:05]} exd5 {[%emt 0:00:14]} 7. d4 {[%emt 0:00:05]} Be7 {[%emt 0:00:15] 7...cxd4 is more fashionable.} 8. a3 {[%emt 0:08:23] D34: Tarrasch Defence: 6 g3 Nf6 7 Bg2 Be7.} c4 {[%emt 0:01:24]} 9. Bg5 {[%emt 0:00:16]} O-O {[%emt 0:00:42]} 10. e3 {[%emt 0:01:16] [#]} Bf5 $146 {[%emt 0:10:53]} ({Predecessor:} 10... Ne8 11. Bxe7 Nxe7 12. Ng1 b5 13. Nge2 a6 14. b3 Rb8 15. Nf4 Bb7 16. O-O Nf6 17. bxc4 dxc4 {½-½ Bluebaum,M (2673)-L'Ami,E (2634) Dortmund GER Grand Prix 2022 (5)}) 11. Ne5 {[%emt 0:33:01]} Nd7 {[%emt 0:11:21]} 12. Nxd7 {[%emt 0:12:32]} Qxd7 {[%emt 0:01:14]} 13. h4 {[%emt 0:00:36]} Be6 {[%emt 0:14:30]} 14. Bxe7 {[%emt 0:01:12]} Nxe7 {[%emt 0:01:01]} 15. O-O {[%emt 0:00:04]} Bh3 {[%emt 0:11:13]} 16. Bxh3 {[%emt 0:05:21]} Qxh3 {[%emt 0:01:23]} 17. Re1 {[%emt 0:03:44]} Qd7 {[%emt 0:05:13]} 18. h5 {[%emt 0:02:48]} f5 {[%emt 0:03:01]} 19. a4 {[%emt 0:02:58]} Rf6 {[%emt 0:00:42][%cal Bf8f6,Bf6h6,Bh6h5][%mdl 32]} 20. b3 {[%emt 0:05:15]} cxb3 {[%emt 0:02:25]} 21. Qxb3 {[%emt 0:04:46]} Rh6 {[%emt 0:00:07]} 22. Qb5 {[%emt 0:03:06]} Rd8 {[%emt 0:00:32][%cal Ba8d8,Bd8d7,Bd7c7,Bc7c1][%mdl 32]} 23. Qxd7 {[%emt 0:02:58]} Rxd7 {[%emt 0:00:04]} 24. a5 {[%emt 0:00:57]} Rxh5 {[%emt 0:00:07]} 25. Reb1 {[%emt 0:00:55]} Rh6 {[%emt 0:07:39]} 26. Na4 {[%emt 0:04:58]} Rc7 {[%emt 0:04:59]} 27. Rb5 {[%emt 0:01:50]} Rhc6 {[%emt 0:00:51]} 28. Rab1 {[%emt 0:02:55]} Rc1+ {[%emt 0:05:39]} 29. Rxc1 {[%emt 0:00:04]} Rxc1+ $16 {[%emt 0:00:04][%mdl 4096] Endgame KRN-KRN} 30. Kg2 {[%emt 0:00:03]} Rc7 {[%emt 0:00:45]} 31. Nc5 {[%emt 0:00:09]} b6 {[%emt 0:00:19]} 32. axb6 {[%emt 0:00:09]} axb6 {[%emt 0:00:04]} 33. Rxb6 {[%emt 0:00:05]} Ra7 {[%emt 0:04:14]} 34. Rd6 {[%emt 0:06:56]} g6 {[%emt 0:01:51]} 35. Nd3 {[%emt 0:02:07]} Rb7 {[%emt 0:01:05]} 36. Kf3 {[%emt 0:00:45]} Kf7 {[%emt 0:01:59]} 37. Ne5+ {[%emt 0:02:39]} Kg7 {[%emt 0:00:02]} 38. Nd3 {[%emt 0:02:19]} (38. Nd7 $16) 38... h6 $2 {[%emt 0:03:40]} (38... Kf7 $1 $11 {and Black is okay.}) 39. Nf4 {[%emt 0:00:31]} ({White should play} 39. Kf4 $1 $18) 39... Rb5 {[%emt 0:00:18]} 40. Ne6+ {[%emt 0:01:43]} Kf7 {[%emt 0:00:28]} 41. Nc5 {[%emt 0:51:07]} Rb2 {[%emt 1:03:19]} 42. Nd3 {[%emt 0:00:00]} Rb3 {[%emt 0:00:00]} 43. Ne5+ {[%emt 0:00:00]} Kg7 {[%emt 0:00:00]} 44. Rd7 {[%emt 0:00:00]} Kf6 {[%emt 0:00:00]} 45. Ra7 {[%emt 0:00:00] White is more active.} Rb2 {[%emt 0:00:00]} (45... Rb1 $16 46. Kg2 h5 47. Nd7+ Kf7 48. Ne5+ Kf6 49. Ra6+ Kg7) 46. g4 $18 {[%emt 0:00:00]} g5 {[%emt 0:00:00]} (46... Rc2 $16 {is a better defense.} 47. Ra6+ Kg7 48. gxf5 gxf5) 47. Kg3 {[%emt 0:00:00]} ({Better is} 47. Ra6+ $18 Kg7 48. gxf5 {[%mdl 64] Deflection} Nxf5 49. Rg6+ Kh7 50. Rf6 Nh4+ 51. Kg4) 47... f4+ {[%emt 0:00:00]} 48. exf4 {[%emt 0:00:00]} gxf4+ {[%emt 0:00:00]} 49. Kf3 {[%emt 0:00:00]} (49. Kxf4 Rxf2+ 50. Ke3 Rb2 $14) 49... Rd2 {[%emt 0:00:00]} 50. Ra6+ {[%emt 0:00:00]} (50. Kxf4 $6 Rxd4+ 51. Kf3 Nc8 52. Nd7+ Kg5 $11) 50... Kg7 {[%emt 0:00:00]} 51. Rb6 {[%emt 0:00:00]} (51. Ra4 $16) 51... Rxd4 $11 {[%emt 0:00:00]} 52. Rb7 {[%emt 0:00:00]} Kf6 {[%emt 0:00:00] [#]} 53. Rxe7 $1 {[%emt 0:00:00][%mdl 64] Remove Defender, Decoy. KRN-KR} Re4 $1 {[%emt 0:00:00]} 54. Rh7 {[%emt 0:00:00]} Kxe5 {[%emt 0:00:00]} 55. Rxh6 {[%emt 0:00:00] KR-KR} Rb4 {[%emt 0:00:00]} 56. Rh5+ {[%emt 0:00:00]} Kd4 {[%emt 0:00:00]} (56... Ke6 $11 {remains equal.}) 57. Rh8 {[%emt 0:01:14]} (57. Kxf4 Kc3+ 58. Kf3 d4 $11) (57. Rf5 $142 $1 {[%cal Rf5f4]} Rb1 58. Kxf4 (58. Rxf4+ Kc3 $11)) 57... Ke5 $16 {[%emt 0:00:00]} 58. Re8+ {[%emt 0:00:38]} Kf6 {[%emt 0:00:00]} 59. Rf8+ {[%emt 0:00:52]} Kg6 {[%emt 0:00:11]} 60. Rf5 $1 {[%emt 0:01:22]} d4 {[%emt 0:07:04]} 61. Rd5 {[%emt 0:03:10]} (61. Kxf4 $6 d3+ 62. Ke3 Rd4 $11) 61... Kf6 {[%emt 0:00:26]} 62. Ke4 $1 {[%emt 0:00:00]} d3+ $2 {[%emt 0:00:00][%mdl 8192]} 63. Kf3 $1 $18 {[%emt 0:00:00]} Ke6 {[%emt 0:00:00]} 64. Rxd3 {[%emt 0:00:00]} Ke5 {[%emt 0:00:00]} 65. Ra3 {[%emt 0:00:00]} Rb5 {[%emt 0:00:00]} 66. Kg2 $2 {[%emt 0:00:00]} (66. Ra6 Rb3+ 67. Kg2) 66... Kf6 {[%emt 0:00:00]} 67. Ra8 $2 {[%emt 0:00:00]} (67. Rh3 $1 $18 Rb8 68. Rh5) 67... Rb3 $2 {[%emt 0:00:00][%mdl 8192]} (67... Kg5 $11) 68. Ra5 {[%emt 0:00:02]} Kg6 {[%emt 0:00:00]} 69. Rf5 {[%emt 0:00:27]} Ra3 $2 {[%emt 0:00:00][%mdl 8192]} (69... Rb4 $16) 70. f3 $1 {[%emt 0:04:14]} (70. Rxf4 Kg5 71. Re4 Kh4 $16) 70... Ra4 {[%emt 0:00:00]} 71. Kh3 {[%emt 0:15:06]} Rb4 {[%emt 0:11:48]} 72. Kh4 {[%emt 0:00:15]} Ra4 {[%emt 0:00:17]} 73. Rf8 $2 {[%emt 0:00:34]} (73. Rg5+ $1 $18 Kh7 74. Rh5+ Kg6 75. g5) 73... Kg7 $1 $11 {[%emt 0:00:17]} 74. Rf5 $2 {[%emt 0:00:05][%mdl 8192]} (74. Rd8 $11 Ra3 75. Kg5 Rxf3 76. Rd7+ Kf8 77. Kg6) 74... Kg6 $1 $18 {[%emt 0:00:04] [#]} 75. Rg5+ $1 {[%emt 0:00:46]} Kh7 {[%emt 0:00:05] [#]} 76. Rh5+ $1 {[%emt 0:00:24]} Kg6 {[%emt 0:00:09]} 77. g5 {[%emt 0:00:13]} Ra1 {[%emt 0:01:08]} 78. Rh6+ {[%emt 0:00:05]} Kf5 {[%emt 0:00:04]} 79. Rf6+ {[%emt 0:00:05]} Ke5 {[%emt 0:00:07]} 80. Rb6 $2 {[%emt 0:03:39]} (80. Rf7 $18 Rb1 81. Kh5) 80... Rh1+ $11 {[%emt 0:02:10] The position is equal.} 81. Kg4 {[%emt 0:00:08] Black must now prevent Rb3.} Rg1+ {[%emt 0:00:07]} 82. Kh5 {[%emt 0:00:02]} Rg3 $1 {[%emt 0:00:05]} 83. Rb3 {[%emt 0:01:02] Threatens to win with Kg6.} Kf5 $1 {[%emt 0:00:08][%cal Rg3h3]} 84. Rb5+ {[%emt 0:00:03]} Ke6 {[%emt 0:00:07]} 85. g6 {[%emt 0:01:00]} Rxf3 {[%emt 0:00:45]} (85... Rh3+ $2 86. Kg4 Rh2 87. Kxf4 $18) 86. g7 {[%emt 0:00:46]} Rg3 {[%emt 0:00:49]} 87. Kh6 {[%emt 0:00:39]} f3 {[%emt 0:00:53]} 88. Rb8 {[%emt 0:00:53]} Rh3+ {[%emt 0:00:14]} (88... f2 $2 89. Rf8 $18 (89. g8=B+ Rxg8 90. Rb6+ Ke5 91. Rb5+ Kd4 92. Rb4+ Ke3 93. Kh7 f1=Q 94. Kxg8 Qf5 95. Rb8 Qe6+ 96. Kh7 Qh3+ 97. Kg7 Qg3+ 98. Kf6 Qxb8 99. Kf7 Kf4 100. Kg6 Kg4 101. Kg7 Kf5 102. Kf7 Qb7+ 103. Ke8 Ke6 104. Kf8 Qf7#)) 89. Kg6 {[%emt 0:00:30] Black escapes into a draw.   Weighted Error Value: White=0.12 (very precise) /Black=0.21 (precise)} (89. Kg5 $5 Rg3+ $8 90. Kh6 (90. Kf4 Rxg7 91. Kxf3 Rh7 $11) 90... Rh3+ 91. Kg6 (91. Kg5 Rg3+ 92. Kh6 $11) 91... Rg3+ 92. Kh7 $11) 1/2-1/2

[Event "85th Tata Steel Masters 2023"]
[Site "Wijk aan Zee"]
[Date "2023.01.24"]
[Round "9.2"]
[White "Ding, Liren"]
[Black "Giri, Anish"]
[Result "0-1"]
[ECO "A14"]
[WhiteElo "2811"]
[BlackElo "2764"]
[Annotator "TA"]
[PlyCount "74"]
[EventDate "2023.01.10"]
[EventType "tourn"]
[EventCountry "NED"]
[SourceTitle "playchess.com"]
[Source "ChessBase"]
[SourceQuality "1"]
[TimeControl "40/6000+30:30/3000+30:900+30"]

{[%evp 12,74,18,9,20,3,20,1,0,7,6,0,0,1,16,0,0,0,34,48,49,40,33,36,73,58,95,87,122,68,70,74,80,45,57,57,49,-70,-8,-8,-10,-18,-8,-18,-24,-102,-102,-150,-179,-190,-98,-129,-112,-258,-275,-256,-261,-710,-710,-2052,-1987,-1946,-1714,-1251,-1188]} 1. Nf3 {[%emt 0:00:03]} d5 {[%emt 0:00:05]} 2. g3 {[%emt 0:00:03]} Nf6 {[%emt 0:00:05]} 3. Bg2 {[%emt 0:00:05]} e6 {[%emt 0:00:05]} 4. O-O {[%emt 0:03:17]} Be7 {[%emt 0:00:08]} 5. c4 {[%emt 0:00:04]} O-O {[%emt 0:00:05]} 6. b3 {[%emt 0:00:48]} d4 {[%emt 0:00:24]} 7. e3 {[%emt 0:00:09]} c5 {[%emt 0:00:13] A14: English Opening: 1...e6 with b3 by White.} 8. Ne5 {[%emt 0:00:46] Prevents Nc6.} Qc7 {[%emt 0:00:20]} 9. f4 {[%emt 0:01:20]} Nbd7 {[%emt 0:00:15] The position is equal.} (9... Nfd7 10. Nf3 Nc6 11. Na3 a6 12. exd4 cxd4 13. d3 b5 14. Bb2 Qb6 15. Kh1 Bb7 16. Nc2 Bf6 17. Ba3 b4 18. Bb2 a5 19. g4 {½-½ Ding,L (2809)-Giri,A (2797) Shenzhen Du Te Cup 3rd 2019 (3)}) 10. Nd3 {[%emt 0:00:19]} e5 {[%emt 0:00:08]} 11. Na3 {[%emt 0:01:23]} a6 $1 {[%emt 0:00:58]} 12. Bb2 {[%emt 0:08:18]} Bd6 $1 {[%emt 0:01:30] [#]} 13. g4 $146 {[%emt 0:00:09][%cal Bg3g4,Bg4g5][%mdl 32]} ({Predecessor:} 13. Nc2 Re8 14. Kh1 Qd8 15. Nf2 Nf8 16. b4 exf4 17. exf4 Be6 18. d3 Qd7 19. bxc5 Bxc5 {0-1 Malikentzos,S (2432)-Koutoukidis,P (2412) GRE-ch 69th Thessaloniki 2019 (6)}) 13... exf4 {[%emt 0:06:12]} 14. g5 {[%emt 0:26:31]} Ne8 {[%emt 0:02:28]} (14... f3 15. Qxf3 Ne8 16. exd4 cxd4 17. Rae1 $18) 15. Nxf4 {[%emt 0:10:46]} ({But not} 15. exf4 Nb6 $11) 15... dxe3 {[%emt 0:17:54]} 16. dxe3 {[%emt 0:05:35]} Be5 {[%emt 0:00:17]} 17. Qc2 {[%emt 0:00:22]} Nd6 {[%emt 0:12:52]} 18. Rad1 $1 {[%emt 0:01:19]} Re8 {[%emt 0:02:40]} 19. Nb1 {[%emt 0:00:52]} ({Much weaker is} 19. Nd5 $6 Qd8 $11) 19... a5 {[%emt 0:06:50]} 20. a4 {[%emt 0:04:00]} ({Better is} 20. Nc3 $16) 20... Bxb2 $14 {[%emt 0:03:30]} 21. Qxb2 {[%emt 0:00:05]} (21. Nd5 {feels hotter.} Qd8 22. Qxb2 Ne5 23. Qf2) 21... Ne5 {[%emt 0:00:09]} 22. Nc3 {[%emt 0:00:42] Hoping for Ncd5.} (22. Qf2 {is interesting.} Bg4 23. Nd5 Qd8 24. Rd2) 22... Bg4 {[%emt 0:02:46][%cal Bc8g4,Bg4e6,Be6c4,Bc4a6][%mdl 32]} 23. Rd5 {[%emt 0:05:47]} Nf5 {[%emt 0:06:25]} 24. Rd2 {[%emt 0:27:21]} (24. Nb5 $14 Qe7 25. Qf2) 24... Nxe3 {[%emt 0:09:16]} ({Black should play} 24... Qb8 $15 25. Ncd5 Nh4) 25. Ncd5 $11 {[%emt 0:00:05]} Nxd5 {[%emt 0:00:07]} 26. Nxd5 {[%emt 0:00:07]} Qb8 {[%emt 0:00:09]} 27. h3 {[%emt 0:03:18]} (27. Qc3 {is more complex.} Ng6 28. h3 Be6 29. Be4) 27... Be6 {[%emt 0:04:12]} 28. Nf4 {[%emt 0:00:47]} (28. Qc3 $11 {keeps the balance.}) 28... Bxc4 $1 $17 {[%emt 0:07:58]} 29. Rff2 {[%emt 0:01:21]} (29. bxc4 $142 Nxc4 30. Qc3 Nxd2 31. Qxd2) 29... Ba6 $1 {[%emt 0:03:45]} 30. Nh5 {[%emt 0:00:15][%cal Od2d7] [#]} Re7 {[%emt 0:10:43] Prevents Rd7.} (30... Qc7 $1 $19 {...Rad8 would be deadly.} 31. Rf5 c4 32. bxc4 Bxc4) 31. Rd5 {[%emt 0:06:24][%cal Of2f5] [#]} Qc7 $1 {[%emt 0:01:56]} 32. Rf5 {[%emt 0:03:30] Loses the game.} (32. Qc3 $17) 32... Rae8 $19 {[%emt 0:00:45]} 33. Qc3 {[%emt 0:00:05]} b6 {[%emt 0:04:21]} 34. Nf6+ $2 {[%emt 0:00:53]} (34. Qg3 Kh8 35. Kh2) 34... gxf6 {[%emt 0:00:07] Black is clearly winning.} 35. gxf6 {[%emt 0:00:02] [#]} Nf3+ $1 {[%emt 0:02:21]} 36. Rxf3 {[%emt 0:00:05]} Re1+ {[%emt 0:00:08]} 37. Bf1 {[%emt 0:00:02]} Kh8 {[%emt 0:01:54] A cool game by Giri.   Weighted Error Value: White=0.53/Black=0.12 (very precise)} 0-1